Cogmind - Beta 13 @@@ ROGUE MODE // 2024.07.29 @ 18:49:46 Player: VraethrDalkr Result: Destroyed by H-81 Overseer with Heavy Linear Accelerator Performance ------------- Evolutions (9) 4500 Regions Visited (13) 2600 Robots Destroyed (33) 165 Value Destroyed (589) 589 Prototype IDs (3) 60 Alien Tech Used (0) 0 Bonus (524) 524 TOTAL SCORE: 8438 Bonus ------- High Alert Combat Kills 24 Entered DSFs 500 Cogmind --------- Core Integrity 0/1600 Matter 81/300 Energy 83/100 System Corruption 3% Temperature Cool (0) Movement Flying (45) Location -1/Access Parts ------- > --- POWER (4) -------- (None) > --- PROPULSION (8) --- Impulse Thruster Array > --- UTILITY (10) ----- Advanced Targeting Computer > --- WEAPON (3) ------- (None) > --- INVENTORY (5) ---- Quantum Reactor Light Quantum Reactor Advanced Force Booster Improved Focal Shield Compact Mass Driver Peak State ------------ > --- POWER ------------ Nuclear Core Light Nuclear Core > --- PROPULSION ------- Gyrokinetic Inverter Flight Unit Flight Unit VTOL Module VTOL Module Cesium-ion Thruster Xenon Bombardment Thruster > --- UTILITY ---------- Advanced Heat Sink Advanced Visual Processing Unit Advanced Sensor Array Transmission Jammer Cloaking Device Hacking Suite > --- WEAPON ----------- Plasma Cannon Autogun > --- INVENTORY -------- Light Fission Core Fusion Compressor Cryofiber Web Improved Coolant Injector Improved Datajack [Rating: 58] Favorites ----------- Power Light Nuclear Core Engine Ion Engine Power Core Light Nuclear Core Reactor Light Antimatter Reactor Propulsion VTOL Module Wheel Wheel Hover Unit Gyrokinetic Inverter Flight Unit VTOL Module Utility Advanced Visual Processing Unit Device Transmission Jammer Storage Small Storage Unit Processor Advanced Visual Processing Unit Hackware Hacking Suite Weapon Autogun Energy Gun Medium Laser Energy Cannon Plasma Cannon Ballistic Gun Autogun Ballistic Cannon Improved Light Cannon Special Weapon Mining Laser Slashing Weapon Power Sword Special Melee Weapon Datajack Build | -11 -10 -9 -8 -7 -6 -5 -5 -5 -4 -3 -2 -2 -1 ------- Run | Yrd Mat Mat Mat Fac Fac Fac Upp Upp Fac Res Res DSF Acc Slots Evolved 18 | . . 2 2 2 2 2 . . 2 2 2 . 2 Power 3 | . . . . 1 . . . . . 1 1 . . Propulsion 6 | . . 1 1 1 1 1 . . 1 . . . . Utility 8 | . . 1 1 . 1 1 . . 1 1 1 . 1 Weapon 1 | . . . . . . . . . . . . . 1 Parts Attached 102 | 10 2 12 7 25 11 3 1 2 2 2 5 . 20 Power 18 | 1 . 2 2 3 3 . . 1 . 1 1 . 4 Engine 8 | 1 . 2 1 2 2 . . . . . . . . Core 6 | . . . 1 1 1 . . 1 . 1 1 . . Reactor 4 | . . . . . . . . . . . . . 4 Propulsion 31 | 2 . 4 2 11 3 1 . . 1 . 2 . 5 Treads . | . . . . . . . . . . . . . . Leg . | . . . . . . . . . . . . . . Wheel 3 | 2 . 1 . . . . . . . . . . . Hover 2 | . . . . . . 1 . . 1 . . . . Flight 26 | . . 3 2 11 3 . . . . . 2 . 5 Utility 21 | 5 . 1 2 4 2 1 1 . . . 1 . 4 Device 14 | 4 . . 1 3 2 1 1 . . . 1 . 1 Storage 2 | 1 . . . . . . . . . . . . 1 Processor 4 | . . 1 1 . . . . . . . . . 2 Hackware 1 | . . . . 1 . . . . . . . . . Protection . | . . . . . . . . . . . . . . Artifact . | . . . . . . . . . . . . . . Weapon 32 | 2 2 5 1 7 3 1 . 1 1 1 1 . 7 Energy Gun 5 | 1 1 2 . 1 . . . . . . . . . Energy Cannon 9 | . . . . 2 1 . . . 1 1 1 . 3 Ballistic Gun 9 | 1 . 1 1 4 . 1 . . . . . . 1 Ballistic Cannon 3 | . 1 . . . . . . . . . . . 2 Launcher . | . . . . . . . . . . . . . . Special Weapon 2 | . . 1 . . 1 . . . . . . . . Impact Weapon . | . . . . . . . . . . . . . . Slashing Weapon 1 | . . . . . . . . . . . . . 1 Piercing Weapon . | . . . . . . . . . . . . . . Special Melee Weapon 3 | . . 1 . . 1 . . 1 . . . . . Unidentified Prototypes 3 | . . . . 1 . . . . . . 1 . 1 Parts Lost 39 | . . . 3 3 1 . 2 3 4 7 . 1 15 Power 7 | . . . . . . . . . 1 2 . . 4 Propulsion 18 | . . . 1 2 1 . 1 2 2 3 . 1 5 Utility 7 | . . . 2 . . . 1 . 1 2 . . 1 Weapon 7 | . . . . 1 . . . 1 . . . . 5 Highest Loss Streak 9 | . . . 2 1 1 . 2 3 4 2 . 1 9 To Critical Strikes . | . . . . . . . . . . . . . . Average Slot Usage (%) 70 | . 100 96 98 97 99 96 87 88 67 26 16 17 19 Engine 4 | . 14 11 9 13 4 . . . . . . . . Core 3 | . . . . . 7 11 11 11 9 2 3 4 1 Wheel 3 | . 28 20 . . . . . . . . . . . Hover 2 | . . . . . . 3 5 5 9 6 . . . Flight 19 | . . 12 36 37 39 35 29 29 14 . 6 8 6 Device 10 | . 14 11 12 4 13 23 22 23 20 7 3 4 1 Storage 4 | . 14 11 9 7 5 . . . . . . . 1 Processor 5 | . . 8 12 7 6 5 5 5 5 3 . . 5 Hackware 3 | . . . . 7 6 5 5 5 5 3 . . . Energy Gun 2 | . 14 5 9 5 . . . . . . . . . Ballistic Gun 3 | . 9 2 9 7 10 3 . . . . . . . Ballistic Cannon 1 | . 4 7 . . . . . . . . . . 1 Naked Turns 53 | . . . . . . . . . . 46 7 . . Heaviest Build 54 | 14 18 20 15 22 27 26 26 23 21 9 15 8 54 Greatest Support 31 | 20 20 30 16 31 27 27 27 23 23 23 14 14 23 Greatest Overweight (x) 8 | 1 . 6 . 1 . 2 . 1 . . 1 . 8 Average Overweight (x) . | . . . . . . . . . . . . . . Largest Inventory Capacity 10 | 8 8 8 8 8 8 5 5 5 5 5 5 5 10 Average Capacity 6 | 7 8 8 8 8 7 5 5 5 5 5 5 5 6 Most Carried 8 | 8 8 8 8 8 8 5 5 5 5 5 5 5 6 Average Carried 5 | 5 7 7 7 7 6 4 4 4 4 4 2 4 4 Final Capacity 8 | 8 8 8 8 8 5 5 5 5 5 5 5 5 5 Final Carried 8 | 8 8 8 7 7 5 5 4 5 5 5 2 5 5 Class Distribution -------------------- 47% | Mutant 21% | Sprinter 18% | Scavenger-Sprinter 5% | Scavenger-Mutant 4% | Infiltrator-Sprinter Dominant Class ---------------- Mutant | -10/Materials Mutant | -9/Materials Sprinter | -8/Materials Sprinter | -7/Factory Scavenger-Sprinter | -6/Factory Scavenger-Mutant | -5/Factory Scavenger-Sprinter | -5/Upper Caves Scavenger-Sprinter | -5/Upper Caves Infiltrator-Sprinter | -4/Factory Mutant | -3/Research Mutant | -2/Research Sprinter | -2/DSF Mutant | -1/Access Resources | -11 -10 -9 -8 -7 -6 -5 -5 -5 -4 -3 -2 -2 -1 ----------- Run | Yrd Mat Mat Mat Fac Fac Fac Upp Upp Fac Res Res DSF Acc Matter Collected 1206 | 326 2 46 40 201 57 71 1 107 . 78 . . 277 Remotely 14 | 14 . . . . . . . . . . . . . Salvage Created 924 | 208 20 28 38 230 57 71 . 90 . . . . 182 Parts 66 | 17 3 3 7 9 2 11 . 3 . . . . 11 Haulers Intercepted . | . . . . . . . . . . . . . . Recyclers Shooed 3 | . . . . 2 1 . . . . . . . . Parts Field Recycled . | . . . . . . . . . . . . . . Retrieved Matter . | . . . . . . . . . . . . . . Parts Self-Destructed . | . . . . . . . . . . . . . . Prevented . | . . . . . . . . . . . . . . Kills | -11 -10 -9 -8 -7 -6 -5 -5 -5 -4 -3 -2 -2 -1 ------- Run | Yrd Mat Mat Mat Fac Fac Fac Upp Upp Fac Res Res DSF Acc Combat Hostiles Destroyed 17 | . . 4 3 5 1 . . . . . . . 4 Melee 1 | . . . . . . . . . . . . . 1 Guns 7 | . . 2 3 1 1 . . . . . . . . Cannons 8 | . . 2 . 3 . . . . . . . . 3 Classes Destroyed 9 | 3 1 1 . 1 1 1 . 1 . . . . . Worker 5 | 2 . . . . . 2 . . . . . . 1 Builder 1 | . . . . . . 1 . . . . . . . Tunneler 6 | 6 . . . . . . . . . . . . . Recycler 2 | 1 . . . 1 . . . . . . . . . Operator 2 | . 1 . . 1 . . . . . . . . . Swarmer 14 | . . 4 3 4 . . . . . . . . 3 Grunt 2 | . . . . . 1 . . . . . . . 1 Hunter 1 | . . . . 1 . . . . . . . . . Decomposer 1 | . . . . . . . . 1 . . . . . Samaritan 2 | . . . . . . . . 2 . . . . . Best Kill Streak 4 | 4 1 4 3 4 1 2 . . . . . . 3 Combat Bots Only 4 | . . 4 3 3 1 . . . . . . . 3 Max Kills in Single Turn 1 | 1 1 1 1 1 1 1 . 1 . . . . 1 Gunslinging . | . . . . . . . . . . . . . . Exploded . | . . . . . . . . . . . . . . Melee 1 | . . . . . . . . . . . . . 1 Uniques/NPCs Destroyed . | . . . . . . . . . . . . . . Combat | -11 -10 -9 -8 -7 -6 -5 -5 -5 -4 -3 -2 -2 -1 -------- Run | Yrd Mat Mat Mat Fac Fac Fac Upp Upp Fac Res Res DSF Acc Hostile Shots Fired 494 | . . 34 36 71 10 . 7 11 18 85 . 5 217 Missed 169 | . . 6 18 34 3 . 2 . 11 29 . 3 63 Damage Taken 6076 | . . 232 261 528 131 . 94 207 195 1192 . 92 3144 Core 2994 | . . 53 45 242 38 . . 37 50 879 . 13 1637 Absorbed by Shields . | . . . . . . . . . . . . . . Ignored by Resistances 448 | . . . . . . . . . . . . . 448 Core Remaining (%) 85 | 100 100 86 91 65 95 . . 96 95 32 . 99 . Volleys Fired 130 | 26 2 15 4 31 14 9 . 13 . . . . 16 Largest 3 | 2 2 2 2 2 2 1 . 1 . . . . 3 Hottest 231 | 70 70 104 73 136 180 80 . 80 . . . . 231 Shots Fired 203 | 52 4 26 8 45 23 9 . 13 . . . . 23 Gun 134 | 52 4 15 8 38 16 . . . . . . . 1 Cannon 68 | . . 11 . 7 6 9 . 13 . . . . 22 Launcher . | . . . . . . . . . . . . . . Special 1 | . . . . . 1 . . . . . . . . Kinetic 83 | 26 2 15 4 8 16 . . . . . . . 12 Thermal 118 | 26 2 11 4 37 7 9 . 13 . . . . 9 Explosive . | . . . . . . . . . . . . . . Electromagnetic 2 | . . . . . . . . . . . . . 2 Robot Hit Streak 22 | 15 19 22 5 8 9 1 . 7 . . . . 19 Robot Miss Streak 5 | 4 . 4 1 5 2 2 . 1 . . . . 1 Penetration Max 1 | . . . . . . . . . . . . . 1 Secondary Targets 1 | . . . 1 . . . . . . . . . . Max Gunslinging Chain 1 | . . . 1 . . . . . . . . . . Shots Hit Robots 143 | 32 4 17 6 25 19 4 . 11 . . . . 25 Core Hits 53 | 14 2 4 3 12 5 3 . 3 . . . . 7 Critical Kills . | . . . . . . . . . . . . . . Critical Parts Destroyed . | . . . . . . . . . . . . . . Critical Strikes 4 | 1 1 . . 1 . . . . . . . . 1 Burn 3 | 1 1 . . 1 . . . . . . . . . Sever 1 | . . . . . . . . . . . . . 1 Melee Attacks 16 | . . 8 . . . . . . . . . . 8 Impact . | . . . . . . . . . . . . . . Slashing 8 | . . . . . . . . . . . . . 8 Piercing . | . . . . . . . . . . . . . . Sneak Attacks 4 | . . 3 . . . . . . . . . . 1 Combat Hostiles . | . . . . . . . . . . . . . . Follow-up Attacks . | . . . . . . . . . . . . . . Damage Inflicted 2888 | 329 40 206 80 399 364 99 . 276 . 10 . . 1085 Guns 1002 | 329 40 100 80 271 182 . . . . . . . . Cannons 1618 | . . 106 . 128 158 99 . 276 . . . . 851 Explosions . | . . . . . . . . . . . . . . Melee 234 | . . . . . . . . . . . . . 234 Ramming 10 | . . . . . . . . . . 10 . . . Kinetic 1013 | 143 16 131 43 19 182 . . . . . . . 479 Thermal 1601 | 186 24 75 37 380 182 99 . 276 . . . . 342 Explosive . | . . . . . . . . . . . . . . Electromagnetic 30 | . . . . . . . . . . . . . 30 Impact . | . . . . . . . . . . . . . . Slashing 234 | . . . . . . . . . . . . . 234 Piercing . | . . . . . . . . . . . . . . Highest Corruption 6 | . . . . 6 . . . . . 3 . . 3 Average Corruption 2 | . . . . 2 . . . . . 3 . . 2 Corruption Purged . | . . . . . . . . . . . . . . Corruption Blocked . | . . . . . . . . . . . . . . Effects 10 | . . . . 8 . . . . . 2 . . . Message Errors 3 | . . . . 3 . . . . . . . . . Matter Fused 2 | . . . . 1 . . . . . 1 . . . Heat Flow Errors 2 | . . . . 1 . . . . . 1 . . . Parts Fused 1 | . . . . 1 . . . . . . . . . Misfires 1 | . . . . 1 . . . . . . . . . Weapon Failures 1 | . . . . 1 . . . . . . . . . Overload Shots . | . . . . . . . . . . . . . . Overflow Damage 187 | . . 1 . . 22 . . 76 . . . . 88 Projectiles 122 | . . 1 . . 22 . . 76 . . . . 23 Explosions . | . . . . . . . . . . . . . . Melee 65 | . . . . . . . . . . . . . 65 Knockbacks 6 | . . 2 . . . . . . . . . . 4 Impact . | . . . . . . . . . . . . . . Kinetic 6 | . . 2 . . . . . . . . . . 4 Secondary . | . . . . . . . . . . . . . . Self-Inflicted Damage 4 | . . . . . . . . . . 4 . . . Shots . | . . . . . . . . . . . . . . Rammed 2 | . . . . . . . . . . 2 . . . Targets Rammed 2 | . . . . . . . . . . 2 . . . Kicked . | . . . . . . . . . . . . . . Crushed . | . . . . . . . . . . . . . . Highest Temperature 324 | 70 40 252 46 308 324 10 13 274 . 192 . . 267 Average Temperature 79 | 26 23 126 23 75 70 5 10 167 . 105 . . 144 Received Heat Transfer 643 | . . 6 27 30 81 . 45 84 37 108 . . 225 Effects 6 | . . 4 . . 1 . . 1 . . . . . Energy Bleed 1 | . . 1 . . . . . . . . . . . Interference 4 | . . 3 . . . . . 1 . . . . . Short Circuit 1 | . . . . . 1 . . . . . . . . Siege Activations . | . . . . . . . . . . . . . . Robots Corrupted . | . . . . . . . . . . . . . . Combat Hostiles . | . . . . . . . . . . . . . . Parts Fried . | . . . . . . . . . . . . . . Impact Corruptions . | . . . . . . . . . . . . . . Robots Melted 1 | . . . . 1 . . . . . . . . . Combat Hostiles 1 | . . . . 1 . . . . . . . . . Parts Melted 7 | . . . . 3 . . . 4 . . . . . Heat Transferred 3459 | 629 148 185 111 990 350 200 . 550 . . . . 296 Parts Sabotaged . | . . . . . . . . . . . . . . Parts Stolen . | . . . . . . . . . . . . . . Parts Stripped . | . . . . . . . . . . . . . . Power Chain Reactions . | . . . . . . . . . . . . . . Alert | -11 -10 -9 -8 -7 -6 -5 -5 -5 -4 -3 -2 -2 -1 ------- Run | Yrd Mat Mat Mat Fac Fac Fac Upp Upp Fac Res Res DSF Acc Peak Influence 445 | 45 70 200 433 429 186 106 . . 88 145 16 27 445 Initial 191 | . 29 29 84 191 176 91 . . 34 45 16 12 9 Average 140 | 18 55 113 209 286 177 99 . . 40 69 16 16 241 Maximum Alert Level 2 | . . 1 2 2 . . . . . . . . 2 Low Security (%) 75 | 100 100 89 48 15 100 100 . . 100 100 100 100 40 Level 1 19 | . . 10 42 67 . . . . . . . . 46 Level 2 4 | . . . 9 16 . . . . . . . . 13 Level 3 . | . . . . . . . . . . . . . . Level 4 . | . . . . . . . . . . . . . . Level 5 . | . . . . . . . . . . . . . . High Security . | . . . . . . . . . . . . . . Max Security . | . . . . . . . . . . . . . . Squads Dispatched 13 | . . 1 1 2 2 . . . 2 2 . 1 2 Investigation 2 | . . . . 1 1 . . . . . . . . Extermination 1 | . . . . . . . . . . . . . 1 Reinforcement 9 | . . 1 1 1 1 . . . 1 2 . 1 1 Assault 1 | . . . . . . . . . 1 . . . . Garrison . | . . . . . . . . . . . . . . Intercept . | . . . . . . . . . . . . . . Searches Triggered . | . . . . . . . . . . . . . . Construction Impeded . | . . . . . . . . . . . . . . Haulers Reinforced . | . . . . . . . . . . . . . . Active Scanning Responses . | . . . . . . . . . . . . . . Cargo Convoy Interrupts . | . . . . . . . . . . . . . . Stealth | -11 -10 -9 -8 -7 -6 -5 -5 -5 -4 -3 -2 -2 -1 --------- Run | Yrd Mat Mat Mat Fac Fac Fac Upp Upp Fac Res Res DSF Acc Distress Signals 4 | . . . 2 . . . . . . . . . 2 Communications Jammed 8 | . . . . 8 . . . . . . . . . Distress Signals 8 | . . . . 8 . . . . . . . . . Times Spotted 134 | . 3 10 29 25 2 . 4 3 8 13 . 2 35 Peak Tracking Total 16 | . 3 4 16 9 1 . 4 3 7 5 . 2 13 Tactical Retreats 24 | . . . 1 3 . . 2 . 2 5 . 1 10 Traps | -11 -10 -9 -8 -7 -6 -5 -5 -5 -4 -3 -2 -2 -1 ------- Run | Yrd Mat Mat Mat Fac Fac Fac Upp Upp Fac Res Res DSF Acc Traps Triggered 2 | . . . . 1 . . . . . . . 1 . Indirectly . | . . . . . . . . . . . . . . Trap Hack Attempts . | . . . . . . . . . . . . . . Triggered . | . . . . . . . . . . . . . . Disarmed . | . . . . . . . . . . . . . . Reprogrammed . | . . . . . . . . . . . . . . Reused . | . . . . . . . . . . . . . . Traps Extracted . | . . . . . . . . . . . . . . Installed . | . . . . . . . . . . . . . . Triggered . | . . . . . . . . . . . . . . Machines | -11 -10 -9 -8 -7 -6 -5 -5 -5 -4 -3 -2 -2 -1 ---------- Run | Yrd Mat Mat Mat Fac Fac Fac Upp Upp Fac Res Res DSF Acc Machines Disabled . | . . . . . . . . . . . . . . Max in Single Turn . | . . . . . . . . . . . . . . Garrison Access 1 | . . . . . . . . . 1 . . . . Machines Repaired . | . . . . . . . . . . . . . . Machines Dismantled . | . . . . . . . . . . . . . . Machines Sabotaged . | . . . . . . . . . . . . . . Overloaded Fab Kills . | . . . . . . . . . . . . . . Hacking | -11 -10 -9 -8 -7 -6 -5 -5 -5 -4 -3 -2 -2 -1 --------- Run | Yrd Mat Mat Mat Fac Fac Fac Upp Upp Fac Res Res DSF Acc Machines Accessed 19 | . 3 3 4 5 2 . . . 1 . 1 . . Terminals 11 | . 3 2 2 2 1 . . . . . 1 . . Fabricators 1 | . . . . . . . . . 1 . . . . Repair Stations 1 | . . . 1 . . . . . . . . . . Recycling Units 5 | . . . 1 3 1 . . . . . . . . Scanalyzers 1 | . . 1 . . . . . . . . . . . Garrison Access . | . . . . . . . . . . . . . . Total Hacks 57 | . 7 9 14 18 7 . . . 1 . 1 . . Successful 36 | . 6 4 9 9 6 . . . 1 . 1 . . Failed 21 | . 1 5 5 9 1 . . . . . . . . Catastrophic 2 | . . . 2 . . . . . . . . . . Database Lockouts . | . . . . . . . . . . . . . . Manual . | . . . . . . . . . . . . . . Terminals 30 | . 7 8 9 4 1 . . . . . 1 . . Fabricators 1 | . . . . . . . . . 1 . . . . Repair Stations 2 | . . . 2 . . . . . . . . . . Recycling Units 23 | . . . 3 14 6 . . . . . . . . Scanalyzers 1 | . . 1 . . . . . . . . . . . Garrison Access . | . . . . . . . . . . . . . . Terminal Hacks 19 | . 6 4 7 1 . . . . . . 1 . . Record 6 | . . 2 4 . . . . . . . . . . Robot Analysis 1 | . . . . 1 . . . . . . . . . Open DSF 1 | . . . . . . . . . . . 1 . . Branch Access Points 1 | . 1 . . . . . . . . . . . . Terminal Index 1 | . . . 1 . . . . . . . . . . Recycling Unit Index 1 | . 1 . . . . . . . . . . . . Alert Level 2 | . 1 1 . . . . . . . . . . . Locate Traps 1 | . . . 1 . . . . . . . . . . Maintenance Status 2 | . 2 . . . . . . . . . . . . Zone Layout 3 | . 1 1 1 . . . . . . . . . . Fabricator Hacks 1 | . . . . . . . . . 1 . . . . Build 1 | . . . . . . . . . 1 . . . . Repair Station Hacks . | . . . . . . . . . . . . . . Recycling Unit Hacks 16 | . . . 2 8 6 . . . . . . . . Recycle Component 4 | . . . . 2 2 . . . . . . . . Process 3 | . . . . 2 1 . . . . . . . . Report Inventory 5 | . . . 1 3 1 . . . . . . . . Retrieve Matter 2 | . . . . 1 1 . . . . . . . . Retrieve Components 2 | . . . 1 . 1 . . . . . . . . Scanalyzer . | . . . . . . . . . . . . . . Garrison Access Hacks . | . . . . . . . . . . . . . . Unauthorized Hacks . | . . . . . . . . . . . . . . Terminals . | . . . . . . . . . . . . . . Fabricators . | . . . . . . . . . . . . . . Repair Stations . | . . . . . . . . . . . . . . Recycling Units . | . . . . . . . . . . . . . . Scanalyzers . | . . . . . . . . . . . . . . Garrison Access . | . . . . . . . . . . . . . . Data Cores Recovered 1 | . 1 . . . . . . . . . . . . Used 1 | . 1 . . . . . . . . . . . . Hacking Detections 13 | . . 3 3 5 2 . . . . . . . . Full Trace Events 2 | . . . . 1 1 . . . . . . . . Feedback Events 1 | . . . . 1 . . . . . . . . . Corruption 1 | . . . . 1 . . . . . . . . . Feedback Blocked . | . . . . . . . . . . . . . . Robot Schematics Acquired . | . . . . . . . . . . . . . . Robots Built . | . . . . . . . . . . . . . . Authchips . | . . . . . . . . . . . . . . Time . | . . . . . . . . . . . . . . Total Robot Build Rating . | . . . . . . . . . . . . . . Part Schematics Acquired . | . . . . . . . . . . . . . . Parts Built 2 | . . . . . . . . . 2 . . . . Authchips . | . . . . . . . . . . . . . . Time 117 | . . . . . . . . . 117 . . . . Total Part Build Rating 14 | . . . . . . . . . 14 . . . . Parts Repaired . | . . . . . . . . . . . . . . Time . | . . . . . . . . . . . . . . Parts Recycled 4 | . . . . 2 2 . . . . . . . . Recycled Matter 80 | . . . . . 80 . . . . . . . . Retrieved Matter 80 | . . . . . 80 . . . . . . . . Retrieved Components 4 | . . . 1 . 3 . . . . . . . . Parts Scanalyzed . | . . . . . . . . . . . . . . Part Schematics Acquired . | . . . . . . . . . . . . . . Parts Damaged . | . . . . . . . . . . . . . . Bothacking | -11 -10 -9 -8 -7 -6 -5 -5 -5 -4 -3 -2 -2 -1 ------------ Run | Yrd Mat Mat Mat Fac Fac Fac Upp Upp Fac Res Res DSF Acc Used RIF Installer . | . . . . . . . . . . . . . . Robots Hacked 2 | . . 2 . . . . . . . . . . . Non-combat 2 | . . 2 . . . . . . . . . . . Combat . | . . . . . . . . . . . . . . Robot Hacks Applied 4 | . . 4 . . . . . . . . . . . parse_system 2 | . . 2 . . . . . . . . . . . no_distress 1 | . . 1 . . . . . . . . . . . find_recycling 1 | . . 1 . . . . . . . . . . . Relay Couplers Released 1 | . . . . . . . . . 1 . . . . Machine Destruction 1 | . . . . . . . . . 1 . . . . Fabnet Peak Effective % . | . . . . . . . . . . . . . . Robots Rewired . | . . . . . . . . . . . . . . Allies Hacked . | . . . . . . . . . . . . . . Hacks Repelled . | . . . . . . . . . . . . . . Allies | -11 -10 -9 -8 -7 -6 -5 -5 -5 -4 -3 -2 -2 -1 -------- Run | Yrd Mat Mat Mat Fac Fac Fac Upp Upp Fac Res Res DSF Acc Total Allies . | . . . . . . . . . . . . . . Largest Group . | . . . . . . . . . . . . . . Highest-Rated Group . | . . . . . . . . . . . . . . Highest-Rated Ally . | . . . . . . . . . . . . . . Total Orders . | . . . . . . . . . . . . . . Ally Attacks . | . . . . . . . . . . . . . . Total Damage . | . . . . . . . . . . . . . . Kills . | . . . . . . . . . . . . . . Allies Corrupted . | . . . . . . . . . . . . . . Allies Melted . | . . . . . . . . . . . . . . Intel | -11 -10 -9 -8 -7 -6 -5 -5 -5 -4 -3 -2 -2 -1 ------- Run | Yrd Mat Mat Mat Fac Fac Fac Upp Upp Fac Res Res DSF Acc Robot Analysis Total 1 | . . . . 1 . . . . . . . . . Derelict Logs Recovered 2 | . . . . . . . 1 1 . . . . . Drone Launches . | . . . . . . . . . . . . . . Drone Recoveries . | . . . . . . . . . . . . . . Exploration | -11 -10 -9 -8 -7 -6 -5 -5 -5 -4 -3 -2 -2 -1 ------------- Run | Yrd Mat Mat Mat Fac Fac Fac Upp Upp Fac Res Res DSF Acc Turns Passed 3166 | 239 150 286 154 459 370 73 115 121 250 501 50 50 348 Spaces Moved 4960 | 175 171 311 466 710 479 171 435 338 203 722 49 95 635 Core 228 | 3 . 1 . . . . . . . 103 13 . 108 Treads . | . . . . . . . . . . . . . . Legs . | . . . . . . . . . . . . . . Wheels 514 | 172 171 171 . . . . . . . . . . . Hover 654 | . . . . . . 8 . . 27 619 . . . Flight 3564 | . . 139 466 710 479 163 435 338 176 . 36 95 527 Fastest Speed 20 | 50 80 29 26 24 20 22 22 26 32 50 50 27 30 Average Speed 40 | 79 80 59 26 25 24 28 25 26 36 66 91 27 39 Slowest Speed 450 | 95 80 350 27 107 25 150 26 112 61 70 107 30 450 Overloaded Moves . | . . . . . . . . . . . . . . Propulsion Burnouts . | . . . . . . . . . . . . . . Robots Hopped 27 | . . 3 7 6 3 . . . . . . . 8 Cave-ins Triggered . | . . . . . . . . . . . . . . Exploration Rate (%) 24 | 8 32 25 37 20 16 4 66 28 7 17 2 76 10 Regions Visited 13 Branch Regions 2 Pre-discovered Areas 1 | . . . . . . . . 1 . . . . . Known Exits Taken 1 | . . . . . . . . . . . 1 . . Unknown Exits Taken 11 | 1 1 1 1 1 1 1 1 1 1 1 . . . Scrap Searched 2 | . . . . . . . 1 1 . . . . . Spaces Dug . | . . . . . . . . . . . . . . Terrain Destroyed 2 | . . 1 . . . . . . . . . . 1 Melee . | . . . . . . . . . . . . . . Projectile 2 | . . 1 . . . . . . . . . . 1 AOE . | . . . . . . . . . . . . . . Terrain Rammed . | . . . . . . . . . . . . . . Walls Destroyed . | . . . . . . . . . . . . . . Machines Disabled . | . . . . . . . . . . . . . . Actions | -11 -10 -9 -8 -7 -6 -5 -5 -5 -4 -3 -2 -2 -1 --------- Run | Yrd Mat Mat Mat Fac Fac Fac Upp Upp Fac Res Res DSF Acc Total 5893 | 227 182 380 486 943 709 184 436 355 379 746 54 120 692 Wait 553 | . . 25 4 138 192 . . . 172 16 . . 6 Move 4894 | 174 170 304 451 698 472 170 434 337 202 721 48 94 619 Hop 26 | . . 3 7 5 3 . . . . . . . 8 Pick Up 67 | 10 3 4 7 10 9 1 . 2 1 3 1 6 10 Fast Attach 29 | 9 1 5 1 4 1 1 . . 1 . . . 6 Attach 43 | . . 1 3 9 4 2 1 1 1 2 5 . 14 Detach 15 | 2 . 1 . 5 . 1 . . 1 . . 1 4 Swap 30 | 1 1 6 3 12 6 . . 1 . . . . . Drop 55 | 5 5 8 6 13 8 . 1 1 1 2 . 4 1 Fire 130 | 26 2 15 4 31 14 9 . 13 . . . . 16 Melee 16 | . . 8 . . . . . . . . . . 8 Ram 2 | . . . . . . . . . . 2 . . . Kick . | . . . . . . . . . . . . . . Crush . | . . . . . . . . . . . . . . Escape Stasis 33 | . . . . 18 . . . . . . . 15 . Rewire . | . . . . . . . . . . . . . . Trap . | . . . . . . . . . . . . . . Miscellaneous . | . . . . . . . . . . . . . . Route ------- -11/Scrapyard -10/Materials (discovered 2 exits: *Mat / Min) -9/Materials -8/Materials (discovered 2 exits: *Fac x2) -7/Factory -6/Factory -5/Factory -5/Upper Caves -5/Upper Caves -4/Factory -3/Research -2/Research -2/DSF -1/Access History --------- Turn | Location | Event 16 | -11/Scrapyard | Discovered new exit (range 15) 240 | -11/Scrapyard | Entered Materials 302 | -10/Materials | Identified exit to Mines 314 | -10/Materials | Build established: Mutant 375 | -10/Materials | Discovered new exit (range 6) 390 | -10/Materials | Entered another Materials area 390 | -9/Materials | Evolved 2 slots: Propulsion x1, Utility x1 672 | -9/Materials | Discovered new exit (range 16) 676 | -9/Materials | Entered another Materials area 676 | -8/Materials | Evolved 2 slots: Propulsion x1, Utility x1 766 | -8/Materials | Discovered new exit (range 10) 817 | -8/Materials | Discovered new exit (range 7) 830 | -8/Materials | Entered Factory 830 | -7/Factory | Evolved 2 slots: Power x1, Propulsion x1 878 | -7/Factory | Build established: Sprinter 1275 | -7/Factory | Discovered new exit (range 19) 1289 | -7/Factory | Entered another Factory area 1289 | -6/Factory | Evolved 2 slots: Propulsion x1, Utility x1 1511 | -6/Factory | Build established: Scavenger-Sprinter 1654 | -6/Factory | Discovered new exit (range 19) 1659 | -6/Factory | Entered another Factory area 1659 | -5/Factory | Evolved 2 slots: Propulsion x1, Utility x1 1692 | -5/Factory | Discovered new exit (range 4) 1732 | -5/Factory | Entered Upper Caves 1780 | -5/Upper Caves | Spotted B-75 Beast 1814 | -5/Upper Caves | Learned 4 Factory zone layouts 1842 | -5/Upper Caves | Discovered new exit (range 15) 1847 | -5/Upper Caves | Entered another Upper Caves area 1862 | -5/Upper Caves | Discovered new exit (range 9) 1968 | -5/Upper Caves | Entered Factory 1968 | -4/Factory | Evolved 2 slots: Propulsion x1, Utility x1 1997 | -4/Factory | Lost 3 parts (2n1w) 2098 | -4/Factory | Fabricated Antimatter Reactor (x2) 2216 | -4/Factory | Discovered new exit (range 6) 2218 | -4/Factory | Entered Research 2218 | -3/Research | Evolved 2 slots: Power x1, Utility x1 2245 | -3/Research | Lost 4 parts (1p2n1u) 2261 | -3/Research | Spotted B-86 Titan 2267 | -3/Research | Discovered new exit (range 20) 2467 | -3/Research | Build established: Mutant 2703 | -3/Research | Core integrity fell below 50% 2719 | -3/Research | Entered another Research area 2719 | -2/Research | Evolved 2 slots: Power x1, Utility x1 2734 | -2/Research | Found Quantum Capacitor 2769 | -2/Research | Identified exit to DSF 2769 | -2/Research | Entered DSF 2799 | -2/DSF | Additional patrols routed to DSF 2807 | -2/DSF | Found Adv. Force Booster 2815 | -2/DSF | Discovered new exit (range 11) 2819 | -2/DSF | Entered Access 2819 | -1/Access | Evolved 2 slots: Utility x1, Weapon x1 2992 | -1/Access | Lost 9 parts (3p2n4w) 3115 | -1/Access | Core integrity fell below 50% 3137 | -1/Access | Core integrity fell below 20% 3155 | -1/Access | Lost 3 parts (2n1w) 3167 | -1/Access | Destroyed by H-81 Overseer with Heavy Linear Accelerator Last Messages --------------- 03116_ Slug penetrates Wall. 03117_ G-73 Enforcer knocked back. 03119_ Enh. Nova Cannon destroyed. 03120_ Slug penetrates Wall. 03121_ Slug penetrates G-73 Enforcer. 03121_ G-73 Enforcer knocked back. 03122_ Wall collapses. 03123_ Penetrated by Slug. 03123_ Acquired 1 matter. 03124_ Xenon Bombardment Thruster destroyed. 03125_ Acquired 6 matter. 03125_ Acquired 12 matter. 03126_ Acquired 4 matter. 03126_ Slug penetrates Wall. 03132_ Door malfunctions. 03139_ Penetrated by Slug. 03139_ Slug penetrates Wall. 03158_ Adv. Targeting Computer destroyed. 03158_ Penetrated by Slug. 03166_ Acquired Impulse Thruster Array. Map ----- +----------------------------------------------------+ | ?????????????????????????????????????????????????? | | ?????????????????????????????????????????????????? | | ?????????????????????????????????????????????????? | | ?????????????????????????????????????????????????? | | ?????????????????????????????????????????????????? | | ?????????????????????????????????????????????????? | | ?????????????????????????????????????????????????? | | ?????????????????????????????????????????????????? | | ?????????????????????????????????????????????????? | | ?????????????????????????????????????????????????? | | ?????????????????????????????????????????????????? | | ?????????????????????????????????????????????????? | | ?????????????????????????????????????????????????? | | ?????????????????????????????????????????????????? | | ???????????????########??????????????????????????? | | ???????????????# ] #?????????????????????????? | | ???????????????# #?????????????????????????? | | ???????????????# #?????????????????????????? | | ???????????????# ####+####?????????????????? | | ???????????????# # ####### ??????????? | | ???????????????# # ??????????? | | ???????????????# # " ?????????? | | ???????????????# +% "T ??H??????? | | ???????????????# # ????? | | ???????????????# # ???? | | ???????????????# # @ #######? ???? | | ???????????????# ### ###??????? ???? | | ???????????????# #?#% #?????????# #???? | | ???????????????# #?# #?????????# #???? | | ???????????????# #?# #?????????# #???? | | ???????????????# ### ##????????# +???? | | ???????????????# ! ## #????????# #???? | | ???????????????#######+## #????????# #???? | | ?????????????????????# +????????+ ????? | | ?????????????????????#### #????????# ????? | | ????????????????????????# #????????# ?????? | | ????????????????????????### ###????????+ ?????? | | ??????????????????????????# #??????????##"+####### | | ??????????????????????????# #??????????# | | ??????????????????????????# #??????????# | | ??????????????????????????# ############ | | ?????????????????????????## # | | ?????????????????? # | | ??????????????????######### #####+########### | | ??????????????????????????# # ###### | | ??????????????????????????# # # | | ??????????????????????????# # " # | | ????????????????????????? # """ # | | ????????????????????????# # """ # | | ????????????????????????# # " # | +----------------------------------------------------+ Best States ------------- Heat Dissipation 59 Coolant Potential 80 Energy Generation 35 Energy Capacity 350 Matter Stores 300 Matter Capacity 300 Sight Range 20 Robot Scan Range 16 Terrain Scan Range 16 Terrain Scan Density 85 Jamming Range 12 Cloak Strength 2 Base Temperature (-) 100 Resistance: KI 25 Evasion (%) 65 Targeting Accuracy 16 Offensive Hacking 10 Item Schematics ----------------- None Robot Schematics ------------------ None Fabricated ------------ Antimatter Reactor | x2 | -4/Factory | Preloaded Alien Tech Used ----------------- None Achievements -------------- None Challenges ------------ None Game ------ Seed CouplerSignalOptics Manual? 0 Play Time 01:59:08 Cumulative 116.6 hours Start 2024.07.29 @ 15:08:26 End 2024.07.29 @ 18:49:46 Sessions 6 Manual Loads 0 Difficulty Rogue Special Mode None Game No. 56 Rogue 46 Adventurer 10 Explorer 0 Win Type - Total 1 Types 0/0/1/0/0/0/0/0/0 Lore% 42 Gallery% 51 Achievement% 41 Wizard Run 0 Options --------- Layout 1 ASCII 0 Keyboard 0 Movement Arrows Keybinds 0 Fullscreen 2 Font 32/SmallcapsGlow Map View 50x35 Zoom Use 0% Tactical HUD 1 Map Filters NONE Filters NONE Steam 0 RUN: 5e65e269-b063-4d6c-b1cc-1965aa19708f